bitfinex/quotes_BTCUSD_20260104
["timestamp","ask_amount","ask_price","bid_price","bid_amount"]
[1767566207916,0.00055167,91174.0,91172.0,0.01096827]
[1767566208212,0.01096755,91178.0,91173.0,0.01096815]
[1767566208655,0.01096731,91180.0,91173.0,0.01096815]
[1767566208855,0.01096755,91178.0,91173.0,0.01096815]
[1767566209483,0.01096755,91178.0,91173.0,0.01087821]
[1767566210838,0.01096755,91178.0,91172.0,0.01083]
[1767566211432,0.01096755,91178.0,91173.0,0.01096815]
[1767566212056,0.01096755,91178.0,91169.0,0.04939333]
[1767566212057,0.000999,91173.0,91169.0,0.04939333]
[1767566212261,0.01096791,91175.0,91169.0,0.06036197]
[1767566212463,0.01096803,91174.0,91169.0,0.06036197]
[1767566212626,0.01096803,91174.0,91169.0,0.04939333]
[1767566212826,0.01096803,91174.0,91169.0,0.06036197]
[1767566213229,0.00054687,91173.0,91169.0,0.06036197]
[1767566213563,0.01096803,91174.0,91169.0,0.04939333]
[1767566213908,0.01096815,91173.0,91169.0,0.04939333]
[1767566214580,0.01046803,91174.0,91169.0,0.04939333]
[1767566215688,0.01096791,91175.0,91169.0,0.06036197]
[1767566215844,0.01096791,91175.0,91170.0,0.06036185]
[1767566216287,0.0059357,91176.0,91170.0,0.06036185]
[1767566216445,0.01096803,91174.0,91170.0,0.04939333]
[1767566216841,0.01096791,91175.0,91170.0,0.06036185]
[1767566217263,0.01096791,91175.0,91170.0,0.04611012]
[1767566217577,0.01096791,91175.0,91170.0,0.0351416]
[1767566218516,0.01096803,91174.0,91170.0,0.0351416]
[1767566218767,0.06580894,91173.0,91170.0,0.0351416]
[1767566218896,0.01096815,91173.0,91168.0,0.06036209]
[1767566219101,0.00053726,91171.0,91168.0,0.06036209]
[1767566219431,0.01096803,91174.0,91169.0,0.01096864]
[1767566219585,0.01096803,91174.0,91168.0,0.06036209]
[1767566219781,0.00053245,91170.0,91168.0,0.04939333]
[1767566220020,0.01096815,91173.0,91168.0,0.06036209]
[1767566220220,0.01105093,91174.0,91168.0,0.06036209]
[1767566221051,0.01105093,91174.0,91169.0,0.06084893]
[1767566221621,0.01105093,91174.0,91169.0,0.04988029]
[1767566221622,0.01096815,91173.0,91169.0,0.04988029]
[1767566221846,0.010969,91166.0,91161.0,0.01096803]
[1767566222047,0.02635836,91163.0,91154.0,0.08774259]
[1767566222251,0.015389,91161.0,91156.0,0.0109702]
[1767566222463,0.015389,91161.0,91154.0,0.08774259]
[1767566222464,0.00441892,91158.0,91154.0,0.03289044]
[1767566222659,0.0109696,91161.0,91156.0,0.0109702]
[1767566223227,0.0109696,91161.0,91154.0,0.02960828]
[1767566223430,0.0109696,91161.0,90985.0,0.76406003]
[1767566223431,0.01097008,91157.0,91148.0,0.01097116]
[1767566223629,0.01087055,91153.0,91149.0,0.02192]
[1767566223834,0.00684123,91153.0,91149.0,0.02192]
[1767566224091,0.01097068,91152.0,91149.0,0.02192]
[1767566225403,0.0658242,91152.0,91147.0,4e-05]
[1767566225603,0.01097092,91150.0,91147.0,4e-05]
[1767566225839,0.06582605,91150.0,91147.0,4e-05]
[1767566226051,0.01097092,91150.0,91147.0,4e-05]
[1767566226601,0.0109708,91151.0,91147.0,4e-05]
[1767566226994,0.01097092,91150.0,91147.0,4e-05]
[1767566227197,0.0109708,91151.0,91147.0,4e-05]
[1767566228457,0.01097092,91150.0,91147.0,4e-05]
[1767566228597,0.0109708,91151.0,91147.0,4e-05]
[1767566230402,0.01097092,91150.0,91147.0,4e-05]
[1767566231363,0.0109708,91151.0,91147.0,4e-05]
[1767566231565,0.01097092,91150.0,91147.0,4e-05]
[1767566231778,0.00594172,91151.0,91147.0,4e-05]
[1767566232418,0.01097092,91150.0,91147.0,4e-05]
[1767566232821,0.00594172,91151.0,91147.0,0.04992029]
[1767566233987,0.01097092,91150.0,91147.0,0.04992029]
[1767566235168,0.06582577,91150.0,91147.0,4e-05]
[1767566235372,0.06582577,91150.0,91144.0,0.04988029]
[1767566235699,0.01097116,91148.0,91144.0,0.04988029]
[1767566235994,0.05485704,91146.0,91144.0,0.04988029]
[1767566236200,0.05485824,91144.0,91143.0,0.00770583]
[1767566236589,0.06582844,91146.0,91143.0,0.00770583]
[1767566237330,0.01097176,91143.0,91138.0,0.02192]
[1767566237618,0.00997276,91143.0,91138.0,0.02192]
[1767566237778,0.01097164,91144.0,91138.0,0.02192]
[1767566238114,0.01097176,91143.0,91138.0,0.03289237]
[1767566238456,0.01097189,91142.0,91138.0,0.02192]
[1767566238656,0.01097176,91143.0,91138.0,0.03289237]
[1767566239517,0.0069434,91144.0,91138.0,0.0327541]
[1767566239694,0.05610638,91143.0,91138.0,0.02178173]
[1767566239858,0.05610638,91143.0,91138.0,0.0327541]
[1767566240063,0.04513462,91143.0,91138.0,0.0327541]
[1767566241289,0.04513462,91143.0,91138.0,0.02178173]
[1767566241290,0.04513462,91141.0,91138.0,0.02178173]
[1767566241543,0.01097189,91142.0,91138.0,0.02178173]
[1767566242204,0.01097201,91141.0,91138.0,0.01606173]
[1767566242408,0.01097201,91141.0,91138.0,0.01506273]
[1767566242612,0.01097225,91139.0,91133.0,0.01097297]
[1767566242818,0.01097213,91140.0,91134.0,0.01097285]
[1767566243199,0.01097237,91138.0,91133.0,0.06092443]
[1767566243416,0.06583321,91140.0,91133.0,0.04995146]
[1767566243417,0.01097225,91139.0,91133.0,0.04995146]
[1767566243618,0.01097225,91139.0,91132.0,0.01097309]
[1767566244033,0.01047225,91139.0,91133.0,0.01097297]
[1767566244240,0.01097213,91140.0,91134.0,0.01097285]
[1767566244649,0.01097225,91139.0,91133.0,0.01097297]
[1767566245060,0.01097237,91138.0,91131.0,0.01097321]
[1767566245285,0.01097225,91139.0,91133.0,0.01097297]
[1767566245493,0.01097225,91139.0,91134.0,0.01097285]
[1767566246019,0.01097213,91140.0,91135.0,0.01097273]
[1767566246535,0.01097237,91138.0,91133.0,0.01097297]
[1767566246735,0.01097225,91139.0,91133.0,0.01097297]
[1767566246934,0.01097237,91138.0,91132.0,0.01097309]
[1767566247174,0.01094462,91139.0,91133.0,0.01097297]
[1767566247374,0.01097213,91140.0,91132.0,0.06255481]
[1767566247957,0.01097225,91139.0,91134.0,0.01097285]
[1767566248428,0.01097249,91137.0,91131.0,0.0658391]
[1767566248608,0.01097237,91138.0,91131.0,0.01097321]
[1767566248829,0.01097249,91137.0,91131.0,0.01097321]
[1767566249105,0.01097261,91136.0,91130.0,0.01097333]
[1767566249254,0.01097261,91136.0,91131.0,0.01097321]
[1767566249459,0.01097261,91136.0,91129.0,0.02192]
[1767566249663,0.01097261,91136.0,91130.0,0.01097333]
[1767566249900,0.01097249,91137.0,91130.0,0.01097333]
[1767566250211,0.01097249,91137.0,91131.0,0.01097321]
[1767566251780,0.01097249,91137.0,91129.0,0.03289345]
[1767566251781,0.01097273,91135.0,91129.0,0.03289345]
[1767566251978,0.01097273,91135.0,91126.0,0.06584282]
[1767566251979,0.01097309,91132.0,91126.0,0.01097381]
[1767566252198,0.01097321,91131.0,91126.0,0.01097381]
[1767566252399,0.01097321,91131.0,91125.0,0.01101393]
[1767566252598,0.06583833,91133.0,91126.0,0.01097381]
[1767566252853,0.01097297,91133.0,91127.0,0.01097369]
[1767566253321,0.01097297,91133.0,91128.0,0.01097357]
[1767566253528,0.01097285,91134.0,91128.0,0.01097357]
[1767566253695,0.01097297,91133.0,91128.0,0.01097357]
[1767566254134,0.01097297,91133.0,91125.0,4e-05]
[1767566254135,0.01097333,91130.0,91125.0,4e-05]
[1767566254339,0.01097309,91132.0,91125.0,4e-05]
[1767566254492,0.01097333,91130.0,91125.0,0.01101393]
[1767566254714,0.01097321,91131.0,91126.0,0.01097381]
[1767566254915,0.00697333,91130.0,91125.0,0.01101393]
[1767566255333,0.01097321,91131.0,91125.0,0.01101393]
[1767566255535,0.01097333,91130.0,91124.0,0.01097405]
[1767566256179,0.01047321,91131.0,91126.0,0.01097381]
[1767566256331,0.01097333,91130.0,91124.0,0.01097405]
[1767566256539,0.01097333,91130.0,91125.0,0.01097393]
[1767566257479,0.01097345,91129.0,91124.0,0.01097405]
[1767566257661,0.00342719,91128.0,91124.0,0.01097405]
[1767566257862,0.00342719,91127.0,91124.0,0.01097405]
[1767566258061,0.00342719,91126.0,91124.0,0.01097405]
[1767566258361,0.00342719,91125.0,91124.0,0.01097405]
[1767566258560,0.00242819,91125.0,91124.0,0.01097405]
[1767566259946,0.01097285,91134.0,91127.0,0.01097369]
[1767566260147,0.01097285,91134.0,91129.0,0.01097345]
[1767566260489,0.01101273,91135.0,91129.0,0.01097345]
[1767566260646,0.01101273,91135.0,91130.0,0.01097333]
[1767566261287,4e-05,91135.0,91131.0,0.01097321]
[1767566261466,4e-05,91135.0,91132.0,0.01097309]
[1767566261833,4e-05,91135.0,91131.0,0.01097321]
[1767566262037,4e-05,91135.0,91129.0,0.01097345]
[1767566262038,0.01101273,91135.0,91129.0,0.01097345]
[1767566262240,4e-05,91135.0,91130.0,0.01097333]
[1767566262540,0.01097249,91137.0,91130.0,0.01097333]
[1767566262872,0.01097261,91136.0,91131.0,0.01097321]
[1767566263069,0.01097261,91136.0,91130.0,0.01097333]
[1767566263314,0.01097261,91136.0,91131.0,0.01097321]
[1767566264247,0.01097249,91137.0,91132.0,0.01097309]
[1767566265126,0.03293237,91138.0,91133.0,0.01097297]
[1767566265338,0.02196,91138.0,91133.0,0.05486486]
[1767566265516,0.02196,91138.0,91132.0,0.01097309]
[1767566265856,0.02196,91138.0,91133.0,0.01097297]
[1767566266037,0.02196,91138.0,91134.0,0.01097285]
[1767566266395,0.02196,91138.0,91133.0,0.01097297]
[1767566266596,0.02196,91138.0,91134.0,0.01097285]
[1767566267137,0.02196,91138.0,91135.0,0.01097273]
[1767566267296,0.02196,91138.0,91134.0,0.01097285]
[1767566267885,0.02196,91138.0,91133.0,0.01097297]
[1767566268085,0.02196,91138.0,91134.0,0.01097285]
[1767566269663,0.03293237,91138.0,91133.0,0.01097297]
[1767566270007,0.02196,91138.0,91133.0,0.01097297]
[1767566270325,0.01196,91138.0,91134.0,0.01097285]
[1767566270521,0.01196,91138.0,91133.0,0.01097297]
[1767566270841,0.01196,91138.0,91134.0,0.01097285]
[1767566270995,0.01196,91138.0,91135.0,0.01097273]
[1767566271927,0.00342722,91137.0,91135.0,0.01088281]
[1767566272145,0.00342722,91136.0,91135.0,0.01088281]
[1767566272926,0.049418,91136.0,91133.0,0.03769302]
[1767566273114,0.00342722,91135.0,91134.0,0.01097285]
[1767566273310,0.02196,91141.0,91137.0,0.01097249]
[1767566273528,0.01097164,91144.0,91138.0,0.01097237]
[1767566273758,0.01097189,91142.0,91137.0,0.01097249]
[1767566273987,0.01097189,91142.0,91136.0,0.01097261]
[1767566274262,0.01097201,91141.0,91135.0,0.01097273]
[1767566274468,0.01097201,91141.0,91136.0,0.01097261]
[1767566274843,0.01097213,91140.0,91134.0,0.01097285]
[1767566275031,0.01097213,91140.0,91135.0,0.01097273]
[1767566275414,0.01097213,91140.0,91134.0,0.01097285]
[1767566275616,0.01097201,91141.0,91134.0,0.01097285]
[1767566275838,0.01097201,91141.0,91135.0,0.01097273]
[1767566276067,0.01097201,91141.0,91136.0,0.01097261]
[1767566277334,0.01097189,91142.0,91136.0,0.01097261]
[1767566277954,0.08276295,91143.0,91136.0,0.01097261]
[1767566278154,0.06080295,91143.0,91136.0,0.01097261]
[1767566278475,0.02196,91142.0,91136.0,0.01097261]
[1767566279262,0.02196,91142.0,91137.0,0.01097249]
[1767566279659,0.03293189,91142.0,91137.0,0.01097249]
[1767566280263,0.02196,91142.0,91138.0,0.01097237]
[1767566280620,0.01097116,91148.0,91130.0,0.54395678]
[1767566280621,0.0001522,91164.0,91148.0,0.05917584]
[1767566280771,0.0001522,91164.0,91154.0,0.01097044]
[1767566280772,0.0001479,91157.0,91154.0,0.01097044]
[1767566281003,0.04726249,91172.0,91153.0,0.01097056]
[1767566281004,0.05483728,91179.0,91164.0,0.04820468]
[1767566281176,0.05483728,91179.0,91154.0,0.02196]
[1767566281177,0.01096972,91160.0,91154.0,0.02196]
[1767566281516,0.04726249,91163.0,91159.0,0.01096984]
[1767566281692,0.01096936,91163.0,91157.0,0.01097008]
[1767566281873,0.06581887,91160.0,91154.0,0.0001079]
[1767566282077,0.01097008,91157.0,91154.0,0.0001079]
[1767566282314,0.01096996,91158.0,91154.0,0.0001079]
[1767566282518,0.01097056,91153.0,91149.0,0.07016468]
[1767566282678,0.00010802,91153.0,91149.0,0.08113572]
[1767566282862,0.00010802,91153.0,91149.0,0.07016468]
[1767566283068,0.00010802,91153.0,91149.0,0.08113572]
[1767566283264,0.01107858,91153.0,91148.0,0.01097116]
[1767566283595,0.00010802,91153.0,91147.0,0.01101128]
[1767566284200,0.00010802,91153.0,91148.0,0.01097116]
[1767566284500,0.01107858,91153.0,91148.0,0.01097116]
[1767566284882,0.01107858,91153.0,91147.0,0.01101128]
[1767566285765,0.01097068,91152.0,91147.0,0.01101128]
[1767566285964,0.01105363,91152.0,91147.0,0.01101128]
[1767566286518,8.295e-05,91152.0,91147.0,0.01101128]
[1767566286895,0.0109708,91151.0,91147.0,4e-05]
[1767566287093,0.01097092,91150.0,91147.0,4e-05]
[1767566287514,0.0109708,91151.0,91147.0,4e-05]
[1767566288504,0.01105363,91152.0,91147.0,0.01101128]
[1767566288882,0.0109708,91151.0,91147.0,4e-05]
[1767566289362,0.01105363,91152.0,91147.0,0.01101128]
[1767566289920,0.01105363,91152.0,91147.0,4e-05]
[1767566290117,0.01105363,91152.0,91147.0,0.01101128]
[1767566292025,0.01105363,91152.0,91133.0,0.01112517]
[1767566292026,0.01097176,91143.0,91133.0,0.01112517]
[1767566292223,0.01097176,91143.0,91135.0,0.05921741]
[1767566292224,0.01097189,91142.0,91135.0,0.05921741]
[1767566292451,0.01097201,91141.0,91136.0,0.01097261]
[1767566292652,0.00875726,91141.0,91136.0,0.01097261]
[1767566293179,0.04726249,91140.0,91136.0,0.01097261]
[1767566293479,0.04226249,91140.0,91136.0,0.01097261]
[1767566293645,0.04226249,91140.0,91134.0,0.05486371]
[1767566293842,0.03686629,91139.0,91135.0,0.01097273]
[1767566294179,0.000999,91135.0,91134.0,0.04820468]
[1767566294363,0.00095404,91135.0,91133.0,0.0001522]
[1767566294564,0.06583619,91136.0,91133.0,1.391e-05]
[1767566295347,0.01097261,91136.0,91133.0,1.391e-05]
[1767566295968,0.06583551,91137.0,91133.0,1.391e-05]
[1767566296592,0.01097261,91136.0,91133.0,1.391e-05]
[1767566298381,0.0109038,91136.0,91133.0,1.391e-05]
[1767566299182,0.06576738,91136.0,91133.0,1.391e-05]
[1767566300196,0.0109038,91136.0,91133.0,1.391e-05]
[1767566300817,0.06576726,91136.0,91133.0,1.391e-05]
[1767566301196,0.05486346,91136.0,91133.0,1.391e-05]
[1767566301398,0.06583607,91136.0,91133.0,1.391e-05]
[1767566302456,0.05486426,91134.0,91133.0,1.391e-05]
[1767566303411,0.01097345,91129.0,91125.0,0.04824468]
[1767566303609,0.01097345,91129.0,91125.0,4e-05]
[1767566304014,0.01097345,91129.0,91126.0,0.04820468]
[1767566304235,0.01097333,91130.0,91126.0,0.04820468]
[1767566307325,0.01090453,91130.0,91126.0,0.04820468]
[1767566307535,0.01097345,91129.0,91126.0,0.04806637]
[1767566308779,0.00197345,91129.0,91126.0,0.04806637]
[1767566308978,0.01090453,91130.0,91126.0,0.04806637]
[1767566309195,0.01097345,91129.0,91126.0,0.04806637]
[1767566310304,0.01097333,91130.0,91126.0,0.04806637]
[1767566310497,0.01097321,91131.0,91126.0,0.04806637]
[1767566310726,0.01097333,91130.0,91126.0,0.04806637]
[1767566310906,0.01097321,91131.0,91126.0,0.05904018]
[1767566311352,0.01097321,91131.0,91126.0,0.04806637]
[1767566311906,0.01097333,91130.0,91125.0,0.01101393]
[1767566312106,0.01097357,91128.0,91125.0,4e-05]
[1767566312325,0.01092861,91128.0,91125.0,4e-05]
[1767566314559,0.0108598,91128.0,91125.0,4e-05]
[1767566315432,0.0108598,91128.0,91122.0,0.01097429]
[1767566316423,0.0108598,91128.0,91123.0,0.01097417]
[1767566316623,0.01097345,91129.0,91123.0,0.01097417]
[1767566317671,0.01440077,91128.0,91122.0,0.01097429]
[1767566317884,0.0034272,91127.0,91122.0,0.05946778]
[1767566318052,0.0034272,91126.0,91123.0,0.01097417]
[1767566318245,0.0034272,91125.0,91122.0,0.04849349]
[1767566318460,0.0034272,91124.0,91122.0,0.04849349]
[1767566318654,0.0034272,91123.0,91122.0,0.04849349]
[1767566319686,0.0034272,91123.0,91122.0,0.04860151]
[1767566321402,0.0034272,91123.0,91120.0,0.02216]
[1767566321403,0.00082217,91122.0,91120.0,0.02216]
[1767566321602,0.00333908,91121.0,91120.0,0.02216]
[1767566321905,0.00333908,91121.0,91120.0,0.0002]
[1767566322484,0.00333908,91121.0,91119.0,0.0002]
[1767566322803,0.01097441,91121.0,91118.0,0.0002]
[1767566323009,0.01097429,91122.0,91118.0,0.0002]
[1767566323241,0.01097441,91121.0,91118.0,0.0002]
[1767566323570,0.05487269,91120.0,91118.0,0.0002]
[1767566323756,0.01090596,91118.0,91115.0,4e-05]
[1767566323959,0.01086099,91118.0,91115.0,0.04853349]
[1767566324193,0.05487269,91120.0,91115.0,0.04853349]
[1767566324977,0.01097465,91119.0,91115.0,0.04853349]
[1767566325391,0.01097465,91119.0,91115.0,0.03427475]
[1767566327279,0.01088652,91119.0,91115.0,0.03427475]
[1767566327480,0.01097477,91118.0,91115.0,0.03427475]
[1767566327939,0.000222,91115.0,91114.0,0.0001522]
[1767566328148,0.05990432,91118.0,91115.0,6.881e-05]
[1767566328361,0.05990432,91118.0,91112.0,0.0109755]
[1767566328557,0.04892955,91118.0,91112.0,0.06585247]
[1767566328808,0.01097453,91120.0,91112.0,0.06585247]
[1767566329044,0.01097477,91118.0,91112.0,0.0109755]
[1767566329207,0.01097477,91118.0,91113.0,0.05946887]
[1767566329430,0.01097502,91116.0,91113.0,0.04849349]
[1767566329983,0.01047502,91116.0,91113.0,0.04849349]
[1767566330407,0.01047502,91116.0,91108.0,0.06605546]
[1767566330408,0.06585115,91115.0,91108.0,0.0002]
[1767566330648,0.01097538,91113.0,91108.0,0.00056023]
[1767566331229,0.01097538,91113.0,91108.0,0.01153621]
[1767566332168,0.0109755,91112.0,91108.0,0.00056023]
[1767566332490,0.01097538,91113.0,91108.0,0.01153621]
[1767566333096,0.0109755,91112.0,91108.0,0.00056023]
[1767566333295,0.05973868,91115.0,91108.0,0.01153621]
[1767566333704,0.00342787,91114.0,91108.0,0.01153621]
[1767566333925,0.00342787,91113.0,91108.0,0.01153621]
[1767566334049,0.00335905,91112.0,91108.0,0.01153621]
[1767566334266,0.01097538,91113.0,91108.0,0.01153621]
[1767566334468,0.01093053,91112.0,91108.0,0.00056023]
[1767566334916,0.01086172,91112.0,91108.0,0.00056023]
[1767566335115,0.01097538,91113.0,91108.0,0.00056023]
[1767566335523,0.01047538,91113.0,91108.0,0.00056023]
[1767566335937,0.01047538,91113.0,91108.0,0.01153621]
[1767566336150,0.05487932,91109.0,91108.0,0.00056023]
[1767566336408,0.05483435,91109.0,91108.0,0.00056023]
[1767566336764,0.05488061,91107.0,91105.0,4e-05]
[1767566336973,0.05488061,91107.0,91105.0,0.00010718]
[1767566337714,0.01097598,91108.0,91105.0,0.00010718]
[1767566339672,0.01097598,91108.0,91100.0,0.06586123]
[1767566339673,0.01097682,91101.0,91096.0,0.01117015]
[1767566339875,0.0109767,91102.0,91096.0,0.01117015]
[1767566340085,0.01097682,91101.0,91096.0,0.00019272]
[1767566340294,0.01097694,91100.0,91096.0,0.00019272]
[1767566340673,0.0109767,91102.0,91096.0,0.00019272]
[1767566340883,0.00597682,91101.0,91096.0,0.01097743]
[1767566341278,0.01097694,91100.0,91095.0,0.01097755]
[1767566341531,0.00597682,91101.0,91095.0,0.01097755]
[1767566341678,0.01097706,91099.0,91094.0,0.01097767]
[1767566341877,0.01090812,91100.0,91099.0,0.000999]
[1767566342099,0.0109767,91102.0,91095.0,0.01097755]
[1767566342515,0.01097694,91100.0,91095.0,0.01097755]
[1767566342678,0.01097682,91101.0,91095.0,0.01097755]
[1767566343122,0.01097682,91101.0,91096.0,0.01097743]
[1767566343277,0.03293658,91103.0,91101.0,0.000999]
[1767566343630,0.01097694,91100.0,91094.0,0.06258164]
[1767566343940,0.01097682,91101.0,91095.0,0.01097755]
[1767566348332,0.01097682,91101.0,91092.0,0.06586715]
[1767566348479,0.00590903,91100.0,91094.0,0.01097767]
[1767566348684,0.00590903,91100.0,91093.0,0.01097779]
[1767566349611,0.01097706,91099.0,91094.0,0.01097767]
[1767566349957,0.00590903,91100.0,91094.0,0.01097767]
[1767566350102,0.01097718,91098.0,91093.0,0.04575031]
[1767566350299,0.01097718,91098.0,91093.0,0.0567281]
[1767566350535,0.01097718,91098.0,91093.0,0.04575031]
[1767566350690,0.01097718,91098.0,91093.0,0.0567281]
[1767566350891,0.01097718,91098.0,91093.0,0.03505349]
[1767566351534,0.01097718,91098.0,91093.0,0.04603128]
[1767566353346,0.01097718,91098.0,91093.0,0.03505349]
[1767566353670,0.0109773,91097.0,91093.0,0.03505349]
[1767566354570,0.01097743,91096.0,91093.0,0.03505349]
[1767566354757,0.0109773,91097.0,91093.0,0.03505349]
[1767566355417,0.01093233,91097.0,91093.0,0.03505349]
[1767566355951,0.0109773,91097.0,91092.0,0.01097791]
[1767566356155,0.06184005,91099.0,91093.0,0.01097779]
[1767566357290,0.0109767,91102.0,91095.0,0.01097755]
[1767566357492,0.01097694,91100.0,91095.0,0.01097755]
[1767566358010,0.01097694,91100.0,91092.0,0.01097791]
[1767566358215,0.01097718,91098.0,91092.0,0.01097791]
[1767566358776,0.01097718,91098.0,91093.0,0.01097779]
[1767566359219,0.0109773,91097.0,91092.0,0.01097791]
[1767566359416,0.0109773,91097.0,91092.0,0.05672822]
[1767566359570,0.01097718,91098.0,91093.0,0.01097779]
[1767566360221,0.0109773,91097.0,91092.0,0.05672822]
[1767566360644,0.0109773,91097.0,91092.0,0.04959697]
[1767566360815,0.01047718,91098.0,91092.0,0.03890009]
[1767566361003,0.01047718,91098.0,91093.0,0.01097779]
[1767566361387,0.000999,91093.0,91090.0,0.01101815]
[1767566361592,0.00088521,91093.0,91090.0,4e-05]
[1767566361808,0.01097755,91095.0,91090.0,4e-05]
[1767566362816,0.01097767,91094.0,91090.0,4e-05]
[1767566363015,0.01097779,91093.0,91090.0,4e-05]
[1767566363213,0.01097779,91093.0,91088.0,0.01097839]
[1767566363214,0.05920895,91093.0,91088.0,0.01097839]
[1767566363543,0.01097779,91093.0,91088.0,0.01097839]
[1767566363682,0.01097779,91093.0,91084.0,0.02196]
[1767566363887,0.00695546,91094.0,91088.0,0.01097839]
[1767566364544,0.01097779,91093.0,91088.0,0.04575031]
[1767566364706,0.00695546,91094.0,91088.0,0.0567287]
[1767566364906,0.01097767,91094.0,91088.0,0.0567287]
[1767566365306,0.01097743,91096.0,91089.0,0.01097827]
[1767566365867,0.01097767,91094.0,91089.0,0.04575031]
[1767566366004,0.01097779,91093.0,91089.0,0.04575031]
[1767566366216,0.01088773,91094.0,91089.0,0.04575031]
[1767566366456,0.01097779,91093.0,91087.0,0.01097851]
[1767566366624,0.01097791,91092.0,91089.0,0.04575031]
[1767566366826,0.01088785,91093.0,91089.0,0.04575031]
[1767566367621,0.01038785,91093.0,91089.0,0.04575031]
[1767566368237,0.01097791,91092.0,91089.0,0.04575031]
[1767566368692,0.01038785,91093.0,91089.0,0.04575031]
[1767566368900,0.01088773,91094.0,91089.0,0.04575031]
[1767566369040,0.01097767,91094.0,91089.0,0.04575031]
[1767566369238,0.01097779,91093.0,91089.0,0.04575031]
[1767566369884,0.01097767,91094.0,91089.0,0.04575031]
[1767566370315,0.01097767,91094.0,91089.0,0.05672858]
[1767566370669,0.01097791,91092.0,91089.0,0.04575031]
[1767566370798,0.01097779,91093.0,91089.0,0.0341681]
[1767566371628,0.01097767,91094.0,91089.0,0.0341681]
[1767566372226,0.01097779,91093.0,91089.0,0.0341681]
[1767566372744,0.06586504,91096.0,91089.0,0.0341681]
[1767566372745,0.01097755,91095.0,91089.0,0.0341681]
[1767566372924,0.02196,91099.0,91097.0,0.04604944]
[1767566373454,0.02196,91099.0,91096.0,0.01097743]
[1767566374233,0.020961,91099.0,91096.0,0.01097743]
[1767566375653,0.020961,91099.0,91095.0,0.06586525]
[1767566376775,0.020961,91099.0,91096.0,0.01097743]
[1767566377009,4e-05,91105.0,91099.0,0.04662911]
[1767566377280,4e-05,91105.0,91099.0,0.04653917]
[1767566377480,4e-05,91105.0,91098.0,0.05488594]
[1767566377859,0.02196,91104.0,91098.0,0.05488594]
[1767566379394,0.018,91104.0,91098.0,0.06586312]
[1767566380309,0.018,91104.0,91100.0,0.01097694]
[1767566380874,0.018,91104.0,91098.0,0.06586312]
[1767566381076,0.018,91104.0,91101.0,0.01097682]
[1767566381278,0.018,91104.0,91100.0,0.01097694]
[1767566381607,0.018,91104.0,91101.0,0.01097682]
[1767566381818,0.018,91104.0,91100.0,0.01097694]
[1767566381996,0.018,91104.0,91101.0,0.01097682]
[1767566382401,0.018,91104.0,91100.0,0.01097694]
[1767566382601,0.018,91104.0,91101.0,0.01097682]
[1767566382802,0.0361107,91103.0,91101.0,0.01097682]
[1767566382967,0.0361107,91103.0,91098.0,0.06586312]
[1767566383167,0.018,91104.0,91101.0,0.01097682]
[1767566383368,0.018,91104.0,91100.0,0.01097694]
[1767566383592,0.018,91104.0,91101.0,0.01097682]
[1767566384371,0.018,91104.0,91101.0,0.00997782]
[1767566385418,0.018,91104.0,91101.0,0.01097682]
[1767566386564,0.018,91104.0,91100.0,0.01097694]
[1767566386771,0.018,91104.0,91101.0,0.01097682]
[1767566387172,0.013,91104.0,91100.0,0.01097694]
[1767566388256,0.013,91104.0,91101.0,0.01097682]
[1767566389474,0.013,91104.0,91100.0,0.01097694]
[1767566389675,0.013,91104.0,91101.0,0.01097682]
[1767566390390,4e-05,91105.0,91101.0,0.01097682]
[1767566390553,0.02196,91104.0,91100.0,0.01097694]
[1767566390890,0.02196,91104.0,91099.0,0.10151402]
[1767566391390,0.02196,91104.0,91100.0,0.01097694]
[1767566392310,0.02196,91104.0,91101.0,0.01097682]
[1767566392468,4e-05,91105.0,91102.0,0.0109767]
[1767566392673,0.02196,91104.0,91101.0,0.01097682]
[1767566393081,0.02196,91104.0,91100.0,0.01097694]
[1767566393477,4e-05,91105.0,91100.0,0.01097694]
[1767566393680,0.022,91105.0,91102.0,0.0109767]
[1767566394479,0.022,91105.0,91101.0,0.01097682]
[1767566394897,0.0109761,91107.0,91101.0,0.01097682]
[1767566395203,0.02196,91105.0,91101.0,0.01097682]
[1767566395711,0.02196,91105.0,91102.0,0.0109767]
[1767566396902,0.02196,91105.0,91101.0,0.01097682]
[1767566397104,0.02196,91105.0,91102.0,0.0109767]
[1767566397412,0.02196,91105.0,91101.0,0.01097682]
[1767566397648,0.00342851,91104.0,91102.0,0.0109767]
[1767566397954,0.00342851,91103.0,91102.0,0.0109767]
[1767566398114,0.00342851,91103.0,91101.0,0.01097682]
[1767566398318,0.00342851,91102.0,91101.0,0.01097682]
[1767566398522,0.00242951,91102.0,91101.0,0.01097682]
[1767566400272,4e-05,91115.0,91105.0,0.01097634]
[1767566400470,0.00040008,91115.0,91113.0,0.04888386]
[1767566400642,0.00040008,91115.0,91111.0,0.05994941]
[1767566400847,0.01097417,91123.0,91117.0,0.0109749]
[1767566401012,0.01097417,91123.0,91120.0,0.01097453]
[1767566401013,6.323e-05,91123.0,91120.0,0.01097453]
[1767566401214,0.0001522,91146.0,91120.0,0.01097453]
[1767566401215,0.01097333,91130.0,91125.0,0.04897379]
[1767566401610,0.01097345,91129.0,91125.0,0.04892884]
[1767566402198,0.01112577,91128.0,91125.0,0.04892884]
[1767566402570,0.00612577,91128.0,91123.0,0.04897379]
[1767566402973,0.01097369,91127.0,91123.0,0.04888387]
[1767566403177,0.01097369,91127.0,91123.0,0.04860718]
[1767566403376,0.01097381,91126.0,91123.0,0.03680496]
[1767566403997,0.01097369,91127.0,91123.0,0.03680496]
[1767566404417,0.01097381,91126.0,91123.0,0.03680496]
[1767566404627,0.01097357,91128.0,91124.0,0.04897379]
[1767566405611,0.01097369,91127.0,91124.0,0.04184386]
[1767566407473,0.01097357,91128.0,91124.0,0.04184386]
[1767566408600,0.01097369,91127.0,91122.0,0.01097429]
[1767566408797,0.01097369,91127.0,91121.0,0.01092777]
[1767566408999,0.01097369,91127.0,91122.0,0.04897379]
[1767566409556,0.01097369,91127.0,91122.0,0.05994808]
[1767566411225,0.01097357,91128.0,91124.0,0.04897379]
[1767566411424,0.01097357,91128.0,91124.0,0.04888389]
[1767566411869,0.01097357,91128.0,91110.0,0.2]
[1767566411870,0.01097369,91127.0,91118.0,0.04897379]
[1767566412072,0.01097393,91125.0,91119.0,0.01097465]
[1767566412278,0.00342784,91124.0,91120.0,0.05994832]
[1767566412515,0.00342784,91123.0,91120.0,0.05994832]
[1767566412718,0.00242884,91122.0,91120.0,0.05994832]
[1767566412920,0.01097381,91126.0,91121.0,0.0599482]
[1767566413328,0.01097393,91125.0,91121.0,0.04897379]
[1767566413532,0.01097381,91126.0,91121.0,0.04897379]
[1767566414114,0.01097381,91126.0,91121.0,0.0599482]
[1767566415302,0.01097357,91128.0,91123.0,0.01097417]
[1767566416143,0.0658404,91130.0,91123.0,0.01097417]